fUST/lending_fUST_20240906
["ID","MTS","AMOUNT","RATE_DAILY","PERIOD"]
[337369300,1725631903171,-9306.23,0.00021643,2]
[337369301,1725631903180,-1523.95,0.00021643,2]
[337369302,1725631903190,-500.0,0.00021643,2]
[337369303,1725631903200,-1087.16,0.00021643,2]
[337369304,1725631903210,-500.0,0.00021643,2]
[337369305,1725631903220,-541.23,0.00021643,2]
[337369306,1725631903229,-3472.66,0.00021643,2]
[337369307,1725631903239,-500.0,0.00021643,2]
[337369308,1725631903249,-500.0,0.00021643,2]
[337369309,1725631903259,-500.0,0.00021643,2]
[337369310,1725631903268,-1236.52,0.00021643,2]
[337369311,1725631903277,-1611.2,0.00021643,2]
[337369312,1725631903287,-500.0,0.00021643,2]
[337369313,1725631903297,-624.32979033,0.00021643,2]
[337369314,1725631903307,-500.0,0.00021643,2]
[337369315,1725631903316,-2055.17,0.00021643,2]
[337369316,1725631903329,-500.0,0.00021643,2]
[337369317,1725631903338,-1839.42,0.00021643,2]
[337369318,1725631903348,-500.0,0.00021643,2]
[337369319,1725631903358,-206.56109153,0.00021643,2]
[337369320,1725631903368,-500.0,0.00021643,2]
[337369321,1725631903377,-500.0,0.00021643,2]
[337369322,1725631903387,-411.97611524,0.00021643,2]
[337369323,1725631903396,-622.12,0.00021643,2]
[337369324,1725631903407,-2171.42,0.00021643,2]
[337369325,1725631903417,-745.9,0.00021643,2]
[337369326,1725631903426,-1274.22,0.00021643,2]
[337369327,1725631903435,-500.0,0.00021643,2]
[337369328,1725631903446,-611.22,0.00021643,2]
[337369329,1725631903458,-1057.51,0.00021643,2]
[337369330,1725631903467,-845.53,0.00021643,2]
[337369331,1725631903477,-500.0,0.00021643,2]
[337369332,1725631903486,-500.0,0.00021643,2]
[337369333,1725631903496,-3522.6,0.00021643,2]
[337369334,1725631903507,-530.81,0.00021643,2]
[337369335,1725631903520,-500.0,0.00021643,2]
[337369336,1725631903532,-3286.15,0.00021643,2]
[337369337,1725631903545,-2863.53,0.00021643,2]
[337369338,1725631903556,-500.0,0.00021643,2]
[337369339,1725631903567,-651.92,0.00021643,2]
[337369340,1725631903580,-2848.96,0.00021643,2]
[337369341,1725631903589,-500.0,0.00021643,2]
[337369342,1725631903600,-2433.94,0.00021643,2]
[337369343,1725631903610,-500.0,0.00021643,2]
[337369344,1725631903620,-2928.81,0.00021643,2]
[337369345,1725631903631,-500.0,0.00021643,2]
[337369346,1725631903641,-2387.03,0.00021643,2]
[337369347,1725631903651,-654.7,0.00021643,2]
[337369348,1725631903660,-500.0,0.00021643,2]
[337369349,1725631903670,-1660.58,0.00021643,2]
[337369350,1725631903680,-500.0,0.00021643,2]
[337369351,1725631903690,-3345.77,0.00021643,2]
[337369352,1725631903699,-500.0,0.00021643,2]
[337369353,1725631903708,-3264.33,0.00021643,2]
[337369354,1725631903718,-500.0,0.00021643,2]
[337369355,1725631903728,-500.0,0.00021643,2]
[337369356,1725631903738,-1608.24,0.00021643,2]
[337369357,1725631903747,-1081.18,0.00021643,2]
[337369358,1725631903758,-587.81,0.00021643,2]
[337369359,1725631903768,-1370.51,0.00021643,2]
[337369360,1725631903778,-656.69,0.00021643,2]
[337369361,1725631903788,-500.0,0.00021643,2]
[337369362,1725631903797,-1055.34,0.00021643,2]
[337369363,1725631903807,-1952.4,0.00021643,2]
[337369364,1725631903817,-500.0,0.00021643,2]
[337369365,1725631903831,-3518.29,0.00021643,2]
[337369366,1725631903841,-500.0,0.00021643,2]
[337369367,1725631903851,-2418.27,0.00021643,2]
[337369368,1725631903860,-500.0,0.00021643,2]
[337369369,1725631903870,-6016.44,0.00021643,2]
[337369370,1725631903880,-557.62329658,0.00021643,2]
[337369371,1725631903890,-500.0,0.00021643,2]
[337369372,1725631903900,-500.0,0.00021643,2]
[337369373,1725631903909,-837.34,0.00021643,2]
[337369374,1725631903919,-862.38,0.00021643,2]
[337369375,1725631903928,-1887.14,0.00021643,2]
[337369376,1725631903937,-500.0,0.00021643,2]
[337369377,1725631903947,-1963.85,0.00021643,2]
[337369378,1725631903957,-2273.13,0.00021643,2]
[337369379,1725631903967,-3757.23,0.00021643,2]
[337369380,1725631903976,-500.0,0.00021643,2]
[337369381,1725631903986,-500.0,0.00021643,2]
[337369382,1725631903995,-500.0,0.00021643,2]
[337369383,1725631904005,-500.0,0.00021643,2]
[337369384,1725631904015,-500.0,0.00021643,2]
[337369385,1725631904024,-455.40490864,0.00021643,2]
[337369386,1725631904033,-1009.77,0.00021643,2]
[337369387,1725631904043,-1475.95,0.00021643,2]
[337369388,1725631904053,-669.11,0.00021643,2]
[337369389,1725631904063,-3550.63,0.00021643,2]
[337369390,1725631904199,-1203.77,0.00021643,2]
[337369391,1725631904210,-500.0,0.00021643,2]
[337369392,1725631904220,-1123.46,0.00021643,2]
[337369393,1725631904230,-1848.36,0.00021643,2]
[337369394,1725631904239,-3384.88,0.00021643,2]
[337369395,1725631904249,-710.64,0.00021643,2]
[337369396,1725631904258,-1535.68,0.00021643,2]
[337369397,1725631904268,-1036.44,0.00021643,2]
[337369398,1725631904278,-603.27,0.00021643,2]
[337369399,1725631904287,-500.0,0.00021643,2]
[337369400,1725631904297,-500.0,0.00021643,2]
[337369401,1725631904306,-3839.93,0.00021643,2]
[337369402,1725631904316,-315.76,0.00021643,2]
[337369403,1725631904337,-3368.52,0.00021643,2]
[337369404,1725631904347,-547.17,0.00021643,2]
[337369405,1725631904358,-500.0,0.00021643,2]
[337369406,1725631904368,-1934.78,0.00021643,2]
[337369407,1725631904377,-500.0,0.00021643,2]
[337369408,1725631904386,-1894.75,0.00021643,2]
[337369409,1725631904396,-912.1,0.00021643,2]
[337369410,1725631904405,-716.25,0.00021643,2]
[337369411,1725631904414,-500.0,0.00021643,2]
[337369412,1725631904424,-500.0,0.00021643,2]
[337369413,1725631904433,-3216.8,0.00021643,2]
[337369414,1725631904443,-500.0,0.00021643,2]
[337369415,1725631904455,-1447.97,0.00021643,2]
[337369416,1725631904466,-1236.59,0.00021643,2]
[337369417,1725631904476,-3894.99,0.00021643,2]
[337369418,1725631904485,-324.8333726,0.00021643,2]
[337369419,1725631904494,-833.5,0.00021643,2]
[337369420,1725631904504,-1879.17,0.00021643,2]
[337369421,1725631904515,-1187.25,0.00021643,2]
[337369422,1725631904526,-500.0,0.00021643,2]
[337369423,1725631904538,-510.23,0.00021643,2]
[337369424,1725631904547,-725.44,0.00021643,2]
[337369425,1725631904557,-2343.94,0.00021643,2]
[337369426,1725631904567,-817.13,0.00021643,2]
[337369427,1725631904582,-777.41061719,0.00021814,2]
[337369428,1725631904592,-1812.84953322,0.00021879,2]
[337369429,1725631904602,-587.0,0.0002191,2]
[337369430,1725631904614,-975.88,0.00021917,2]
[337369431,1725631904624,-1000.0,0.00021917,2]
[337369432,1725631904635,-1145.76894068,0.00021917,2]
[337369433,1725631904645,-502.29,0.00021917,2]
[337369434,1725631904655,-500.0,0.00021917,2]
[337369435,1725631904665,-500.0,0.00021917,2]
[337369436,1725631904674,-500.0,0.00021917,2]
[337369437,1725631904683,-500.0,0.00021917,2]
[337369438,1725631904693,-500.0,0.00021917,2]
[337369439,1725631904702,-500.0,0.00021917,2]
[337369440,1725631904712,-500.0,0.00021917,2]
[337369441,1725631904721,-500.0,0.00021917,2]
[337369442,1725631904730,-532.12,0.00021917,2]
[337369443,1725631904741,-501.56,0.00021917,2]
[337369444,1725631904751,-500.0,0.00021917,2]
[337369445,1725631904760,-667.2,0.00021917,2]
[337369446,1725631904770,-500.0,0.00021917,2]
[337369447,1725631904779,-848.57,0.00021917,2]
[337369448,1725631904788,-500.0,0.00021917,2]
[337369449,1725631904798,-472.98750029,0.00021917,2]
[337369450,1725631904808,-500.0,0.00021917,2]
[337369451,1725631904818,-511.36437829,0.00021917,2]
[337369452,1725631904830,-500.0,0.00021917,2]
[337369453,1725631904839,-500.0,0.00021917,2]
[337369454,1725631904848,-500.0,0.00021917,2]
[337369455,1725631904859,-500.0,0.00021917,2]
[337369456,1725631904868,-676.68,0.00021917,2]
[337369457,1725631904877,-500.0,0.00021917,2]
[337369458,1725631904888,-636.07,0.00021917,2]
[337369459,1725631904898,-500.0,0.00021917,2]
[337369460,1725631904907,-516.24069119,0.00021917,2]
[337369461,1725631904918,-500.0,0.00021917,2]
[337369462,1725631904927,-500.0,0.00021917,2]
[337369463,1725631904936,-500.0,0.00021917,2]
[337369464,1725631904946,-718.23,0.00021917,2]
[337369465,1725631904955,-500.0,0.00021917,2]
[337369466,1725631904964,-500.0,0.00021917,2]
[337369467,1725631904973,-500.0,0.00021917,2]
[337369468,1725631904982,-500.0,0.00021917,2]
[337369469,1725631904992,-1651.41,0.00021917,2]
[337369470,1725631905001,-500.0,0.00021917,2]
[337369471,1725631905013,-500.0,0.00021917,2]
[337369472,1725631905025,-1115.64,0.00021917,2]
[337369473,1725631905035,-1610.16,0.00021917,2]
[337369474,1725631905044,-500.0,0.00021917,2]
[337369475,1725631905053,-555.07,0.00021917,2]
[337369476,1725631905062,-500.0,0.00021917,2]
[337369477,1725631905075,-500.0,0.00021917,2]
[337369478,1725631905084,-522.21,0.00021917,2]
[337369479,1725631905094,-500.0,0.00021917,2]
[337369480,1725631905103,-526.4366339,0.00021917,2]
[337369481,1725631905112,-2093.39,0.00021917,2]
[337369482,1725631905121,-500.0,0.00021917,2]
[337369483,1725631905130,-648.33,0.00021917,2]
[337369484,1725631905139,-500.0,0.00021917,2]
[337369485,1725631905148,-500.0,0.00021917,2]
[337369486,1725631905169,-2191.44,0.00021917,2]
[337369487,1725631905189,-500.0,0.00021917,2]
[337369488,1725631905208,-500.0,0.00021917,2]
[337369489,1725631905227,-500.0,0.00021917,2]
[337369490,1725631905245,-3029.51,0.00021917,2]
[337369491,1725631905265,-500.0,0.00021917,2]
[337369492,1725631905281,-500.0,0.00021917,2]
[337369493,1725631905299,-500.0,0.00021917,2]
[337369494,1725631905313,-500.0,0.00021917,2]
[337369495,1725631905334,-500.0,0.00021917,2]
[337369496,1725631905352,-1309.28,0.00021917,2]
[337369497,1725631905371,-500.0,0.00021917,2]
[337369498,1725631905383,-2317.55,0.00021917,2]
[337369499,1725631905400,-500.0,0.00021917,2]
[337369500,1725631905417,-953.81,0.00021917,2]
[337369501,1725631905433,-2214.38,0.00021917,2]
[337369502,1725631905448,-500.0,0.00021917,2]
[337369503,1725631905467,-500.0,0.00021917,2]
[337369504,1725631905482,-2383.39,0.00021917,2]
[337369505,1725631905496,-1150.25,0.00021917,2]
[337369506,1725631905511,-500.0,0.00021917,2]
[337369507,1725631905526,-1383.67,0.00021917,2]
[337369508,1725631905543,-1000.0,0.00021917,5]
[337369509,1725631905557,-1000.0,0.00021917,5]
[337369510,1725631905574,-800.96598753,0.00021917,5]
[337369511,1725631905588,-574.52,0.00021917,2]
[337369512,1725631905602,-1055.24,0.00021917,2]
[337369513,1725631905618,-1183.94,0.00021917,2]
[337369514,1725631905633,-953.31,0.00021917,2]
[337369515,1725631905648,-500.0,0.00021917,2]
[337369516,1725631905662,-500.0,0.00021917,2]
[337369517,1725631905677,-500.0,0.00021917,2]
[337369518,1725631905691,-1004.18,0.00021917,2]
[337369519,1725631905705,-500.0,0.00021917,2]
[337369520,1725631905720,-500.0,0.00021917,2]
[337369521,1725631905734,-500.0,0.00021917,2]
[337369522,1725631905748,-500.0,0.00021917,2]
[337369523,1725631905763,-500.0,0.00021917,2]
[337369524,1725631905777,-609.29,0.00021917,2]
[337369525,1725631905791,-500.0,0.00021917,2]
[337369526,1725631905805,-1073.16,0.00021917,2]
[337369527,1725631905821,-500.0,0.00021917,2]
[337369528,1725631905837,-500.0,0.00021917,2]
[337369529,1725631905853,-500.0,0.00021917,2]
[337369530,1725631905870,-500.0,0.00021917,2]
[337369531,1725631905884,-500.0,0.00021917,2]
[337369532,1725631905898,-500.0,0.00021917,2]
[337369533,1725631905913,-500.0,0.00021917,2]
[337369534,1725631905928,-500.0,0.00021917,2]
[337369535,1725631905944,-500.0,0.00021917,2]
[337369536,1725631905961,-500.0,0.00021917,2]
[337369537,1725631905976,-500.0,0.00021917,2]
[337369538,1725631905991,-500.0,0.00021917,2]
[337369539,1725631906005,-500.0,0.00021917,2]
[337369540,1725631906020,-500.0,0.00021917,2]
[337369541,1725631906035,-500.0,0.00021917,2]
[337369542,1725631906050,-984.52,0.00021917,2]
[337369543,1725631906065,-500.0,0.00021917,2]
[337369544,1725631906080,-500.0,0.00021917,2]
[337369545,1725631906095,-802.18,0.00021917,2]
[337369546,1725631906110,-500.0,0.00021917,2]
[337369547,1725631906125,-502.79,0.00021917,2]
[337369548,1725631906140,-177.56749803,0.00021917,2]
[337369549,1725631906154,-500.0,0.00021917,2]
[337369550,1725631906169,-672.02,0.00021917,2]
[337369551,1725631906183,-1736.67,0.00021917,2]
[337369552,1725631906199,-2241.58,0.00021917,2]
[337369553,1725631906214,-500.0,0.00021917,2]
[337369554,1725631906229,-203.97488245,0.00021917,2]
[337369555,1725631906243,-428.15569165,0.00021917,2]
[337369556,1725631906258,-709.85,0.00021917,2]
[337369557,1725631906273,-929.24,0.00021917,2]
[337369558,1725631906287,-789.68,0.00021917,2]
[337369559,1725631906301,-500.0,0.00021917,2]
[337369560,1725631906316,-564.3,0.00021917,2]
[337369561,1725631906331,-2150.56,0.00021917,2]
[337369562,1725631906345,-500.0,0.00021917,2]
[337369563,1725631906363,-500.0,0.00021917,2]
[337369564,1725631906378,-500.0,0.00021917,2]
[337369565,1725631906392,-774.77,0.00021917,2]
[337369566,1725631906407,-500.0,0.00021917,2]
[337369567,1725631906423,-500.0,0.00021917,2]
[337369568,1725631906437,-500.0,0.00021917,2]
[337369569,1725631906454,-1717.67,0.00021917,2]
[337369570,1725631906469,-537.94,0.00021917,2]
[337369571,1725631906484,-500.0,0.00021917,2]
[337369572,1725631906501,-500.0,0.00021917,2]
[337369573,1725631906517,-501.02,0.00021917,2]
[337369574,1725631906532,-500.0,0.00021917,2]
[337369575,1725631906550,-500.0,0.00021917,2]
[337369576,1725631906567,-500.0,0.00021917,2]
[337369577,1725631906586,-1438.2,0.00021917,2]
[337369578,1725631906601,-500.0,0.00021917,2]
[337369579,1725631906618,-500.0,0.00021917,2]
[337369580,1725631906634,-564.71,0.00021917,2]
[337369581,1725631906650,-1150.94,0.00021917,2]
[337369582,1725631906667,-500.0,0.00021917,2]
[337369584,1725631906868,-500.0,0.00021917,2]
[337369585,1725631906887,-500.0,0.00021917,2]
[337369586,1725631906897,-500.0,0.00021917,2]
[337369587,1725631906907,-1637.9,0.00021917,2]
[337369588,1725631906917,-3128.92,0.00021917,2]
[337369589,1725631906928,-500.0,0.00021917,2]
[337369590,1725631906938,-645.59,0.00021917,2]
[337369591,1725631906948,-500.0,0.00021917,2]
[337369592,1725631906957,-500.0,0.00021917,2]
[337369593,1725631906967,-500.0,0.00021917,2]
[337369594,1725631906977,-549.21,0.00021917,2]
[337369595,1725631906987,-1354.63,0.00021917,2]
[337369596,1725631906997,-500.0,0.00021917,2]
[337369597,1725631907007,-588.01,0.00021917,2]
[337369598,1725631907017,-500.0,0.00021917,2]
[337369599,1725631907027,-500.0,0.00021917,2]
[337369600,1725631907036,-500.0,0.00021917,2]
[337369601,1725631907046,-500.0,0.00021917,2]
[337369602,1725631907056,-500.0,0.00021917,2]
[337369603,1725631907066,-500.0,0.00021917,2]
[337369604,1725631907079,-696.17,0.00021917,2]
[337369605,1725631907088,-2435.34,0.00021917,2]
[337369606,1725631907098,-500.0,0.00021917,2]
[337369607,1725631907108,-739.29,0.00021917,2]
[337369608,1725631907118,-500.0,0.00021917,2]
[337369609,1725631907127,-500.0,0.00021917,2]
[337369610,1725631907136,-712.06,0.00021917,2]
[337369611,1725631907146,-1437.93,0.00021917,2]
[337369612,1725631907157,-500.0,0.00021917,2]
[337369613,1725631907166,-1254.48,0.00021917,2]
[337369614,1725631907176,-500.0,0.00021917,2]
[337369615,1725631907185,-500.0,0.00021917,2]
[337369616,1725631907196,-500.0,0.00021917,2]
[337369617,1725631907206,-547.87,0.00021917,2]
[337369618,1725631907216,-500.0,0.00021917,2]
[337369619,1725631907228,-1992.59,0.00021917,2]
[337369620,1725631907239,-579.46,0.00021917,2]
[337369621,1725631907250,-2436.65,0.00021917,2]
[337369622,1725631907259,-500.0,0.00021917,2]
[337369623,1725631907269,-854.61,0.00021917,2]
[337369624,1725631907279,-1053.85,0.00021917,2]
[337369625,1725631907290,-500.0,0.00021917,2]
[337369626,1725631907300,-619.13,0.00021917,2]
[337369627,1725631907311,-504.30867954,0.00021917,2]
[337369628,1725631907320,-500.0,0.00021917,2]
[337369629,1725631907334,-2391.77,0.00021917,2]
[337369630,1725631907345,-500.0,0.00021917,2]
[337369631,1725631907355,-325.09267607,0.00021917,2]
[337369632,1725631907366,-1773.27,0.00021917,2]
[337369633,1725631907376,-500.0,0.00021917,2]
[337369634,1725631907385,-1617.1,0.00021917,2]
[337369635,1725631907395,-985.06,0.00021917,2]
[337369636,1725631907405,-1012.85,0.00021917,2]
[337369637,1725631907414,-1083.74,0.00021917,2]
[337369638,1725631907424,-500.0,0.00021917,2]
[337369639,1725631907434,-500.0,0.00021917,2]
[337369640,1725631907444,-993.62,0.00021917,2]
[337369641,1725631907453,-509.08141558,0.00021917,2]
[337369642,1725631907463,-979.52,0.00021917,2]
[337369643,1725631907473,-500.0,0.00021917,2]
[337369644,1725631907482,-1448.57,0.00021917,2]
[337369645,1725631907492,-500.0,0.00021917,2]
[337369646,1725631907502,-2065.07,0.00021917,2]
[337369647,1725631907512,-508.47762057,0.00021917,2]
[337369648,1725631907523,-503.10344742,0.00021917,2]
[337369649,1725631907534,-3583.08,0.00021917,2]
[337369650,1725631907547,-500.0,0.00021917,2]
[337369651,1725631907556,-500.0,0.00021917,2]
[337369652,1725631907566,-765.11,0.00021917,2]
[337369653,1725631907579,-500.0,0.00021917,2]
[337369654,1725631907588,-2187.02,0.00021917,2]
[337369655,1725631907597,-548.62,0.00021917,2]
[337369656,1725631907606,-500.0,0.00021917,2]
[337369657,1725631907618,-600.2,0.00021917,2]
[337369658,1725631907628,-915.11,0.00021917,2]
[337369659,1725631907638,-526.84,0.00021917,2]
[337369660,1725631907647,-583.77,0.00021917,2]
[337369661,1725631907657,-500.0,0.00021917,2]
[337369662,1725631907666,-476.88510706,0.00021917,2]
[337369663,1725631907675,-500.0,0.00021917,2]
[337369664,1725631907684,-2820.38,0.00021917,2]
[337369665,1725631907694,-3216.65,0.00021917,2]
[337369666,1725631907703,-500.0,0.00021917,2]
[337369667,1725631907712,-3068.16,0.00021917,2]
[337369668,1725631907721,-500.0,0.00021917,2]
[337369669,1725631907731,-500.0,0.00021917,2]
[337369670,1725631907742,-500.0,0.00021917,2]
[337369671,1725631907751,-500.0,0.00021917,2]
[337369672,1725631907761,-2164.36,0.00021917,2]
[337369673,1725631907770,-500.0,0.00021917,2]
[337369674,1725631907779,-585.28,0.00021917,2]
[337369675,1725631907788,-500.0,0.00021917,2]
[337369676,1725631907797,-2677.65,0.00021917,2]
[337369677,1725631907806,-500.38,0.00021917,2]
[337369678,1725631907816,-2074.26,0.00021917,2]
[337369679,1725631907828,-2209.05,0.00021917,2]
[337369680,1725631907838,-500.0,0.00021917,2]
[337369681,1725631907848,-3954.89,0.00021917,2]
[337369682,1725631907858,-500.0,0.00021917,2]
[337369683,1725631907867,-1651.0,0.00021917,2]
[337369684,1725631907876,-116314.01,0.00021917,2]
[337369685,1725631907886,-500.0,0.00021917,2]
[337369686,1725631907895,-500.0,0.00021917,2]
[337369687,1725631907905,-500.0,0.00021917,2]
[337369688,1725631907915,-9306.23,0.00021917,2]
[337369689,1725631907928,-500.0,0.00021917,2]
[337369690,1725631907939,-1087.16,0.00021917,2]
[337369691,1725631907948,-1523.95,0.00021917,2]
[337369692,1725631907960,-425.19461798,0.00021917,2]
[337369693,1725631907970,-541.23,0.00021917,2]
[337369694,1725631907979,-3472.66,0.00021917,2]
[337369695,1725631907989,-500.0,0.00021917,2]
[337369696,1725631907999,-500.0,0.00021917,2]
[337369697,1725631908008,-500.0,0.00021917,2]
[337369698,1725631908018,-1236.52,0.00021917,2]
[337369699,1725631908027,-1611.2,0.00021917,2]
[337369700,1725631908037,-307.59366064,0.00021917,2]
[337369701,1725631908046,-500.0,0.00021917,2]
[337369702,1725631908056,-2055.17,0.00021917,2]
[337369703,1725631908066,-500.0,0.00021917,2]
[337369704,1725631908078,-1839.42,0.00021917,2]
[337369705,1725631908088,-500.0,0.00021917,2]
[337369706,1725631908098,-500.0,0.00021917,2]
[337369707,1725631908108,-500.0,0.00021917,2]
[337369708,1725631908117,-622.12,0.00021917,2]
[337369709,1725631908128,-2171.42,0.00021917,2]
[337369710,1725631908141,-745.9,0.00021917,2]
[337369711,1725631908153,-1274.22,0.00021917,2]
[337369712,1725631908163,-500.0,0.00021917,2]
[337369713,1725631908173,-611.22,0.00021917,2]
[337369714,1725631908183,-1057.51,0.00021917,2]
[337369715,1725631908193,-845.53,0.00021917,2]
[337369716,1725631908203,-205.52672824,0.00021917,2]
[337369717,1725631908213,-500.0,0.00021917,2]
[337369718,1725631908223,-3522.6,0.00021917,2]
[337369719,1725631908232,-530.81,0.00021917,2]
[337369720,1725631908243,-500.0,0.00021917,2]
[337369721,1725631908253,-3286.15,0.00021917,2]
[337369722,1725631908263,-2863.53,0.00021917,2]
[337369723,1725631908273,-500.0,0.00021917,2]
[337369724,1725631908283,-651.92,0.00021917,2]
[337369725,1725631908293,-2848.96,0.00021917,2]
[337369726,1725631908302,-442.17006389,0.00021917,2]
[337369727,1725631908311,-1140.7419196,0.00021917,2]
[337369804,1725632926040,793.30774849,0.000129,2]
[337369952,1725633033584,-300.0,0.00017671,2]
[337369953,1725633033596,-300.0,0.00017671,2]
[337369954,1725633033607,-4910.0,0.00017672,2]
[337370031,1725633038775,-18970.0566036,0.00017672,2]
[337370033,1725633038785,-168.359739,0.00017868,2]
[337370034,1725633038795,-168.359739,0.00018024,2]
[337370035,1725633038805,-168.359739,0.00018179,2]
[337370036,1725633038815,-168.359739,0.00018334,2]
[337370037,1725633038825,-168.359739,0.00018489,2]
[337370038,1725633038835,-168.359739,0.00018644,2]
[337370039,1725633038845,-8038.35845574,0.00018728,2]
[337370040,1725633038855,-2754.34325885,0.00018738,2]
[337370041,1725633038866,-1546.5664966,0.00018738,2]
[337370042,1725633038876,-674.51,0.00018797,3]
[337370043,1725633038886,-168.359739,0.000188,2]
[337370044,1725633038896,-150.112233,0.000188,2]
[337370045,1725633038907,-150.112233,0.000188,2]
[337370046,1725633038920,-150.112233,0.000188,2]
[337370047,1725633038931,-95649.4383499,0.00018807,2]
[337370048,1725633038940,-286948.31505,0.00018808,2]
[337370049,1725633038951,-225.0,0.00018815,2]
[337370050,1725633038961,-500.0,0.00018815,2]
[337370051,1725633038971,-233.23292083,0.00018815,2]
[337370052,1725633038981,-500.0,0.00018815,2]
[337370053,1725633038992,-500.0,0.00018815,2]
[337370054,1725633039007,-500.0,0.00018815,2]
[337370055,1725633039017,-500.0,0.00018815,2]
[337370056,1725633039028,-500.0,0.00018815,2]
[337370057,1725633039038,-500.0,0.00018815,2]
[337370058,1725633039048,-500.0,0.00018815,2]
[337370060,1725633039059,-500.0,0.00018815,2]
[337370062,1725633039069,-500.0,0.00018815,2]
[337370063,1725633039079,-157.10595933,0.00018815,2]
[337370064,1725633039090,-500.0,0.00018815,2]
[337370065,1725633039100,-500.0,0.00018815,2]
[337370066,1725633039110,-500.0,0.00018815,2]
[337370067,1725633039120,-500.0,0.00018815,2]
[337370068,1725633039131,-500.0,0.00018815,2]
[337370069,1725633039142,-500.0,0.00018815,2]
[337370070,1725633039153,-350.0,0.00018815,2]
[337370071,1725633039164,-500.0,0.00018815,2]
[337370072,1725633039177,-500.0,0.00018815,2]
[337370073,1725633039187,-500.0,0.00018815,2]
[337370074,1725633039197,-500.0,0.00018815,2]
[337370075,1725633039207,-500.0,0.00018815,2]
[337370076,1725633039217,-500.0,0.00018815,2]
[337370077,1725633039227,-500.0,0.00018815,2]
[337370078,1725633039237,-500.0,0.00018815,2]
[337370079,1725633039247,-500.0,0.00018815,2]
[337370080,1725633039264,-500.0,0.00018815,2]
[337370081,1725633039274,-500.0,0.00018815,2]
[337370082,1725633039283,-500.0,0.00018815,2]
[337370083,1725633039293,-500.0,0.00018815,2]
[337370084,1725633039304,-500.0,0.00018815,2]
[337370085,1725633039314,-500.0,0.00018815,2]
[337370086,1725633039323,-500.0,0.00018815,2]
[337370087,1725633039333,-500.0,0.00018815,2]
[337370088,1725633039347,-500.0,0.00018815,2]
[337370089,1725633039358,-500.0,0.00018815,2]
[337370090,1725633039368,-500.0,0.00018815,2]
[337370091,1725633039378,-500.0,0.00018815,2]
[337370092,1725633039388,-500.0,0.00018815,2]
[337370093,1725633039398,-500.0,0.00018815,2]
[337370094,1725633039408,-500.0,0.00018815,2]
[337370095,1725633039418,-194944.9126478,0.00018848,2]
[337370096,1725633039427,-500.0,0.00018873,2]
[337370097,1725633039437,-152.43784128,0.00018873,2]
[337370098,1725633039447,-500.0,0.00018873,2]
[337370099,1725633039457,-159.62806455,0.00018873,2]
[337370100,1725633039466,-500.0,0.00018873,2]
[337370101,1725633039476,-500.0,0.00018873,2]
[337370102,1725633039485,-500.0,0.00018873,2]